bitfinex/quotes_BTCUSD_20251120
["timestamp","ask_amount","ask_price","bid_price","bid_amount"]
[1763672278506,0.00603,86641.0,86627.0,0.04132618]
[1763672278687,0.03004,86641.0,86627.0,0.04132618]
[1763672278886,0.03104,86641.0,86627.0,0.04132618]
[1763672279206,0.02401,86640.0,86626.0,0.00674]
[1763672279421,0.01152,86627.0,86622.0,0.04132618]
[1763672279650,0.01152,86627.0,86620.0,0.04132618]
[1763672280064,0.01152,86627.0,86619.0,0.04132618]
[1763672280278,0.01152,86627.0,86618.0,0.04132618]
[1763672280484,0.02114,86620.0,86618.0,0.00048499]
[1763672280699,0.01511,86619.0,86618.0,0.00048499]
[1763672280920,0.03912,86619.0,86618.0,0.00048499]
[1763672281182,0.05724121,86619.0,86618.0,4.99e-06]
[1763672281395,0.05724121,86619.0,86587.0,0.10723088]
[1763672281396,0.05,86612.0,86586.0,0.04132618]
[1763672281606,0.12987708,86607.0,86590.0,0.00068481]
[1763672281821,0.02659,86591.0,86582.0,0.01158]
[1763672282032,0.02659,86591.0,86582.0,0.01199675]
[1763672282247,0.01148,86591.0,86582.0,0.01199675]
[1763672282460,0.01148,86591.0,86582.0,0.00041675]
[1763672282670,0.05,86602.0,86582.0,0.00041675]
[1763672282883,0.46937044,86600.0,86582.0,0.00041675]
[1763672283097,0.11476708,86591.0,86582.0,0.00041675]
[1763672283716,0.16476708,86591.0,86582.0,0.00041675]
[1763672283946,0.05,86591.0,86582.0,0.00041675]
[1763672284148,0.419405,86596.0,86582.0,0.00041675]
[1763672284353,0.11476708,86591.0,86582.0,0.00041675]
[1763672284686,0.11576708,86591.0,86582.0,0.00041675]
[1763672284953,0.11676708,86591.0,86582.0,0.00041675]
[1763672285314,0.01167671,86590.0,86581.0,0.0009667]
[1763672285593,0.11676708,86591.0,86581.0,0.00111185]
[1763672286346,0.58613752,86591.0,86581.0,0.00111185]
[1763672286552,0.05,86587.0,86581.0,0.00111185]
[1763672286775,0.338519,86586.0,86581.0,0.00111185]
[1763672286985,0.05,86582.0,86581.0,0.00111185]
[1763672287387,0.06153557,86582.0,86581.0,0.00111185]
[1763672288128,0.323,86590.0,86581.0,0.00111185]
[1763672288320,0.001,86582.0,86581.0,0.00111185]
[1763672288677,0.002,86582.0,86581.0,0.00111185]
[1763672288885,0.002,86582.0,86581.0,0.05178185]
[1763672289091,0.001,86582.0,86581.0,0.05178185]
[1763672289286,0.001,86582.0,86581.0,0.02821185]
[1763672289492,0.001,86582.0,86575.0,0.00308185]
[1763672289689,0.01127,86588.0,86575.0,0.00322727]
[1763672291359,0.01127,86588.0,86575.0,0.00014542]
[1763672291564,0.03605,86588.0,86575.0,0.00014542]
[1763672291720,0.01227,86588.0,86575.0,0.00014542]
[1763672292945,0.001,86588.0,86576.0,0.13833708]
[1763672293193,0.001,86588.0,86577.0,0.01386049]
[1763672293392,0.001,86588.0,86578.0,0.02357]
[1763672293667,0.001,86588.0,86578.0,0.46937044]
[1763672294195,0.01127,86593.0,86578.0,0.46937044]
[1763672294403,0.01812864,86586.0,86575.0,0.00014542]
[1763672294597,0.03605,86593.0,86575.0,0.00014542]
[1763672294800,0.01127,86593.0,86575.0,0.00014542]
[1763672295012,0.03605,86593.0,86575.0,0.00014542]
[1763672296671,0.02478,86592.0,86571.0,0.01171542]
[1763672296876,0.02519667,86592.0,86574.0,0.11476708]
[1763672297865,0.01812852,86588.0,86574.0,0.11476708]
[1763672299662,0.01812852,86588.0,86587.0,0.02274]
[1763672299936,0.01812852,86588.0,86587.0,0.04631]
[1763672300293,0.01812852,86588.0,86581.0,0.0076]
[1763672300695,0.01812852,86588.0,86581.0,0.03117]
[1763672301097,0.01812852,86588.0,86581.0,0.0076]
[1763672302111,0.05,86609.0,86581.0,0.0076]
[1763672302312,0.01812757,86601.0,86581.0,0.00801667]
[1763672303468,0.03600796,86608.0,86581.0,0.00801667]
[1763672303469,0.5,86608.0,86581.0,0.00801667]
[1763672303693,0.001,86609.0,86590.0,0.46937044]
[1763672303869,0.32326382,86618.0,86590.0,0.41937044]
[1763672304106,0.11476708,86606.0,86590.0,0.05577075]
[1763672304306,0.001,86601.0,86589.0,0.02357]
[1763672304507,0.001,86601.0,86587.0,0.11476708]
[1763672304680,0.11476708,86606.0,86587.0,0.11476708]
[1763672304999,0.001,86609.0,86587.0,0.11476708]
[1763672305205,0.00026382,86618.0,86590.0,0.46937044]
[1763672305206,0.01377,86617.0,86590.0,0.46937044]
[1763672305402,0.001,86601.0,86588.0,0.03504671]
[1763672305628,0.001,86601.0,86589.0,0.02357]
[1763672305784,0.01377,86612.0,86589.0,0.02357]
[1763672305994,0.01207988,86618.0,86589.0,0.02357]
[1763672305995,0.002,86606.0,86590.0,0.01808819]
[1763672306212,0.02156933,86605.0,86581.0,0.03908476]
[1763672306392,0.02156933,86604.0,86582.0,0.04492778]
[1763672306562,0.03533933,86604.0,86583.0,0.03995145]
[1763672306765,0.02156933,86603.0,86584.0,0.01385937]
[1763672307142,0.01812727,86599.0,86584.0,0.01385937]
[1763672307339,0.01812727,86599.0,86585.0,0.03106809]
[1763672307571,0.01812727,86599.0,86589.0,0.03106809]
[1763672307951,0.01812727,86599.0,86588.0,0.03106809]
[1763672308125,0.01812727,86599.0,86589.0,0.03106809]
[1763672308334,0.01812727,86599.0,86598.0,0.01196]
[1763672308662,0.01812727,86599.0,86598.0,0.0271]
[1763672308869,0.01812727,86599.0,86598.0,0.01196]
[1763672309013,0.01812727,86599.0,86592.0,0.04302809]
[1763672309217,0.02166149,86598.0,86596.0,0.03106809]
[1763672309423,0.01812727,86599.0,86595.0,0.03106809]
[1763672309630,0.02166071,86598.0,86595.0,0.03106809]
[1763672309835,0.01812727,86599.0,86598.0,0.01514]
[1763672310054,0.03978784,86599.0,86598.0,0.01514]
[1763672310259,0.02379552,86599.0,86598.0,0.01514]
[1763672310462,0.02166057,86599.0,86596.0,0.03106809]
[1763672310683,0.02166057,86598.0,86594.0,0.03106809]
[1763672310835,0.03348057,86597.0,86584.0,0.00878809]
[1763672311041,0.01182,86597.0,86584.0,0.00878809]
[1763672311465,0.01182,86597.0,86589.0,0.11476708]
[1763672313247,0.0094,86611.0,86596.0,0.02737]
[1763672313469,0.0556815,86610.0,86592.0,0.04158422]
[1763672313699,0.01964,86591.0,86587.0,0.04158422]
[1763672313903,0.01964,86591.0,86581.0,0.07012729]
[1763672313904,0.01964,86591.0,86584.0,0.04158422]
[1763672315362,0.04283,86591.0,86583.0,0.04158422]
[1763672315586,0.04283,86591.0,86581.0,0.04200089]
[1763672316000,0.044847,86590.0,86581.0,0.00041667]
[1763672316221,0.021657,86589.0,86581.0,0.00041667]
[1763672316434,0.021657,86588.0,86581.0,0.00041667]
[1763672316675,0.02319,86590.0,86581.0,0.00041667]
[1763672316878,0.02165782,86589.0,86581.0,0.00041667]
[1763672317085,0.02319,86590.0,86581.0,0.00041667]
[1763672317086,0.02165867,86588.0,86581.0,0.00041667]
[1763672317293,0.02319,86590.0,86581.0,0.00041667]
[1763672317294,0.02166967,86587.0,86581.0,0.00041667]
[1763672317495,0.02319,86590.0,86581.0,0.00041667]
[1763672317496,0.001,86588.0,86581.0,0.00041667]
[1763672317710,0.02166979,86587.0,86581.0,0.00041667]
[1763672317916,0.02319,86590.0,86581.0,0.00041667]
[1763672318120,0.02267035,86589.0,86577.0,0.03100089]
[1763672318329,0.02167035,86588.0,86577.0,0.0001455]
[1763672318531,0.02167035,86587.0,86577.0,0.0001455]
[1763672318732,0.001,86588.0,86577.0,0.0001455]
[1763672319194,0.02167571,86587.0,86577.0,0.0001455]
[1763672319367,0.001,86588.0,86577.0,0.0001455]
[1763672319786,0.02319,86590.0,86577.0,0.0001455]
[1763672319999,0.0216752,86589.0,86577.0,0.0001455]
[1763672320193,0.02303,86578.0,86577.0,0.0001455]
[1763672320415,0.00643,86578.0,86577.0,0.0001455]
[1763672320823,0.02419,86588.0,86577.0,0.0001455]
[1763672321020,0.01142,86583.0,86577.0,0.0001455]
[1763672322776,0.00304,86591.0,86582.0,0.02737]
[1763672323937,0.323,86602.0,86582.0,0.02737]
[1763672324137,0.01142,86603.0,86582.0,0.02737]
[1763672324138,0.09029109,86599.0,86583.0,0.02355]
[1763672324337,0.001,86591.0,86583.0,0.03740953]
[1763672324547,0.001,86591.0,86583.0,0.09952015]
[1763672324956,0.01142,86603.0,86590.0,0.01525]
[1763672325182,0.01142,86603.0,86584.0,0.02355]
[1763672325183,0.02190931,86602.0,86584.0,0.02355]
[1763672325388,0.001,86599.0,86587.0,0.11476708]
[1763672325607,0.00023381,86598.0,86590.0,0.01047]
[1763672325813,0.001,86599.0,86597.0,0.34872]
[1763672326033,0.001,86599.0,86598.0,0.01525]
[1763672326234,0.001,86599.0,86598.0,0.0388]
[1763672326455,0.01812474,86599.0,86598.0,0.45816729]
[1763672326655,0.01812474,86599.0,86598.0,0.44492754]
[1763672326826,0.01812474,86599.0,86598.0,0.3618]
[1763672328402,0.01812474,86599.0,86598.0,0.3628]
[1763672328714,0.00162741,86617.0,86598.0,0.077127]
[1763672328883,0.00162741,86617.0,86616.0,0.01525]
[1763672329091,0.00162741,86617.0,86612.0,0.06223548]
[1763672329384,0.00162741,86617.0,86608.0,0.323]
[1763672329583,0.00162741,86617.0,86616.0,0.01525]
[1763672330144,0.00204433,86617.0,86616.0,0.01525]
[1763672330369,0.00204433,86617.0,86616.0,0.00057828]
[1763672330785,0.00204433,86617.0,86616.0,0.01025]
[1763672331201,0.00204433,86617.0,86616.0,0.0205]
[1763672331400,0.00204433,86617.0,86616.0,0.01025]
[1763672332219,0.01864433,86617.0,86599.0,0.06223548]
[1763672332419,0.01864433,86617.0,86595.0,0.01025]
[1763672332420,0.01864433,86617.0,86605.0,0.11476708]
[1763672332617,0.00204433,86617.0,86605.0,0.11476708]
[1763672333036,0.00204433,86617.0,86607.0,0.78726849]
[1763672333237,0.00204433,86617.0,86616.0,0.01025]
[1763672334473,0.00204433,86617.0,86616.0,0.0095121]
[1763672335433,0.00204433,86617.0,86600.0,0.01061455]
[1763672335434,0.04183433,86617.0,86597.0,0.01047]
[1763672335589,0.0166,86609.0,86597.0,0.01047]
[1763672335787,0.0166,86609.0,86600.0,0.11476708]
[1763672336608,0.0166,86609.0,86600.0,0.11423708]
[1763672337112,0.0166,86609.0,86597.0,0.01047]
[1763672337473,0.00204433,86617.0,86600.0,0.11476708]
[1763672337711,0.00204433,86617.0,86588.0,0.323]
[1763672337712,0.02802,86598.0,86582.0,0.01212]
[1763672337943,0.0166,86591.0,86582.0,0.01212]
[1763672338328,0.01142,86590.0,86582.0,0.01212]
[1763672339118,0.01142,86590.0,86582.0,0.0122655]
[1763672339320,0.0166,86583.0,86582.0,0.0001455]
[1763672339520,0.03461,86590.0,86576.0,0.09691258]
[1763672339721,0.03461,86590.0,86576.0,0.09700579]
[1763672340424,0.01142,86604.0,86589.0,0.11476708]
[1763672340595,0.01142,86627.0,86589.0,0.11476708]
[1763672340596,0.01812814,86595.0,86589.0,0.11476708]
[1763672340772,0.01812814,86595.0,86590.0,0.03377964]
[1763672340979,0.01812814,86595.0,86591.0,0.01385825]
[1763672341178,0.01812814,86595.0,86589.0,0.11476708]
[1763672343369,0.01812814,86595.0,86590.0,0.33685841]
[1763672343572,0.01142,86616.0,86590.0,0.323]
[1763672343705,0.01142,86616.0,86603.0,0.11476708]
[1763672344049,0.02330381,86615.0,86590.0,0.323]
[1763672344224,0.02330381,86615.0,86590.0,1.11026849]
[1763672344225,0.11476708,86614.0,86590.0,1.11026849]
[1763672344429,0.01532226,86613.0,86580.0,1.11026849]
[1763672344596,0.02307,86612.0,86589.0,0.11476708]
[1763672344795,0.00023381,86611.0,86589.0,0.11476708]
[1763672344997,0.01649961,86610.0,86589.0,0.11476708]
[1763672345255,0.00023381,86609.0,86580.0,1.11026849]
[1763672345893,0.02307,86608.0,86580.0,1.11026849]
[1763672346110,0.02307,86608.0,86573.0,0.06248934]
[1763672346111,0.02732,86581.0,86573.0,0.00025386]
[1763672346339,0.01749961,86610.0,86577.0,0.11476708]
[1763672346340,0.01181,86587.0,86577.0,0.11476708]
[1763672346545,0.01181,86587.0,86574.0,0.11476708]
[1763672346768,0.01812888,86585.0,86573.0,0.00025386]
[1763672346988,0.01551,86574.0,86573.0,0.00025386]
[1763672347199,0.01812888,86585.0,86573.0,0.00025386]
[1763672347408,0.01551,86574.0,86573.0,0.00034707]
[1763672347619,0.01551,86574.0,86560.0,0.0002]
[1763672347824,0.01551,86571.0,86560.0,0.00032512]
[1763672348044,0.01551,86571.0,86561.0,0.11476708]
[1763672348248,0.01551,86571.0,86562.0,0.01386289]
[1763672348462,0.03858,86571.0,86560.0,0.00032512]
[1763672348666,0.02732,86561.0,86560.0,0.00032512]
[1763672349095,0.05039,86561.0,86560.0,0.00032512]
[1763672350832,0.05139,86561.0,86560.0,0.00032512]
[1763672351961,0.05239,86561.0,86560.0,0.00032512]
[1763672352850,0.05139,86561.0,86560.0,0.00032512]
[1763672353058,0.05239,86561.0,86560.0,0.00032512]
[1763672353276,0.633641,86561.0,86560.0,0.00032512]
[1763672353485,0.68674349,86561.0,86560.0,0.00032512]
[1763672353695,0.412929,86561.0,86560.0,0.00073772]
[1763672353896,0.413929,86561.0,86560.0,0.00073772]
[1763672354749,0.05139,86561.0,86560.0,0.00073772]
[1763672354960,0.05339,86561.0,86560.0,0.00073772]
[1763672355173,0.05239,86561.0,86560.0,0.00073772]
[1763672355595,0.05339,86561.0,86560.0,0.00073772]
[1763672355826,0.05139,86561.0,86560.0,0.00073772]
[1763672356047,0.05239,86561.0,86560.0,0.00073772]
[1763672356255,0.05339,86561.0,86560.0,0.00073772]
[1763672356583,0.05139,86561.0,86560.0,0.00073772]
[1763672356789,0.05039,86561.0,86560.0,0.00073772]
[1763672356998,0.01181,86576.0,86560.0,0.00073772]
[1763672357206,0.01181,86576.0,86560.0,0.00032512]
[1763672357415,0.01181,86561.0,86560.0,0.00032512]
[1763672357623,0.02330381,86575.0,86560.0,0.00032512]
[1763672357835,0.02732,86561.0,86560.0,0.00032512]
[1763672358038,0.01181,86561.0,86560.0,0.00032512]
[1763672358246,0.01281,86561.0,86560.0,0.00032512]
[1763672358451,0.04753771,86576.0,86560.0,0.00032512]
[1763672358653,0.11500089,86575.0,86560.0,0.00032512]
[1763672358857,0.13907089,86575.0,86560.0,0.00032512]
[1763672359060,0.02732,86561.0,86560.0,0.00032512]
[1763672359663,0.01181,86561.0,86560.0,0.00032512]
[1763672359884,0.0099,86563.0,86560.0,0.00032512]
[1763672360084,0.02541,86561.0,86560.0,0.00032512]
[1763672361363,0.0099,86561.0,86560.0,0.00032512]
[1763672361561,0.0099,86561.0,86545.0,0.01321512]
[1763672361764,0.0099,86561.0,86545.0,0.00012541]
[1763672361965,0.02732,86546.0,86545.0,0.00012541]
[1763672362168,0.01181,86546.0,86545.0,0.00012541]
[1763672362797,0.02307,86555.0,86545.0,0.00012541]
[1763672362968,0.02307,86555.0,86545.0,0.00112541]
[1763672363169,0.02307,86555.0,86554.0,0.00060307]
[1763672363730,0.03297,86561.0,86554.0,0.00060307]
[1763672363893,0.03297,86561.0,86545.0,0.00112541]
[1763672363894,0.01551,86555.0,86545.0,0.00112541]
[1763672364257,0.01551,86555.0,86545.0,0.00012541]
[1763672364467,0.02732,86546.0,86545.0,0.00012541]
[1763672364672,0.05039,86546.0,86545.0,0.00012541]
[1763672367806,0.05239,86546.0,86545.0,0.00012541]
[1763672368014,0.05139,86546.0,86545.0,0.00012541]
[1763672368235,0.05039,86546.0,86545.0,0.00012541]
[1763672368454,1.66096949,86546.0,86545.0,0.00062424]
[1763672368660,0.37510249,86545.0,86512.0,0.00278]
[1763672368867,0.323,86539.0,86512.0,0.00012539]
[1763672369305,0.02307,86538.0,86512.0,0.00012539]
[1763672369520,0.02732,86513.0,86512.0,0.00012539]
[1763672369937,0.05039,86513.0,86512.0,0.00012539]
[1763672370146,0.0125,86519.0,86512.0,0.00012539]
[1763672370372,0.11476708,86535.0,86512.0,0.00012539]
[1763672370373,0.0125,86534.0,86512.0,0.00012539]
[1763672370580,0.01814162,86513.0,86512.0,0.00012539]
[1763672370814,0.0125,86534.0,86513.0,0.00602]
[1763672371021,0.02362,86533.0,86513.0,0.00602]
[1763672371227,0.0125,86534.0,86513.0,0.02913]
[1763672371440,0.002,86534.0,86521.0,0.11476708]
[1763672371658,0.01181,86546.0,86522.0,0.0138693]
[1763672371857,0.01181,86546.0,86522.0,0.0429993]
[1763672372092,0.01181,86546.0,86522.0,0.0198893]
[1763672372093,0.001,86533.0,86522.0,0.0198893]
[1763672372506,0.47044468,86560.0,86522.0,0.00602]
[1763672372507,0.11476708,86548.0,86522.0,0.00602]
[1763672373229,0.01147671,86553.0,86522.0,0.00602]
[1763672373426,0.01147671,86553.0,86523.0,0.02421]
[1763672373628,0.001,86534.0,86530.0,0.47044468]
[1763672373835,0.48044467,86580.0,86522.0,0.00602]
[1763672373836,0.5138669,86573.0,86531.0,0.03807786]
[1763672374038,0.0138669,86573.0,86544.0,0.11476708]
[1763672374236,0.001,86548.0,86544.0,0.11476708]
[1763672374435,0.01412834,86581.0,86545.0,0.02421]
[1763672374436,0.0228,86573.0,86545.0,0.02421]
[1763672374638,0.001,86553.0,86550.0,0.47044468]
[1763672375019,0.0138669,86576.0,86552.0,0.01621]
[1763672375238,0.00012502,86576.0,86552.0,0.01621]
[1763672375541,0.00012502,86576.0,86560.0,0.47044468]
[1763672375876,0.00012502,86576.0,86575.0,0.01217]
[1763672376084,0.00012502,86576.0,86567.0,0.01217]
[1763672376513,0.00012502,86576.0,86575.0,0.01621]
[1763672376720,0.01825723,86576.0,86575.0,0.01621]
[1763672376930,0.01925723,86576.0,86567.0,0.01217]
[1763672377160,0.01925723,86576.0,86572.0,0.11476708]
[1763672377584,0.01925723,86576.0,86575.0,0.01621]
[1763672378004,0.01825723,86576.0,86575.0,0.01621]
[1763672378445,0.01825723,86576.0,86572.0,0.11476708]
[1763672379316,0.00651,86575.0,86567.0,0.01217]
[1763672379744,0.01825723,86576.0,86574.0,0.01621]
[1763672379955,0.01825723,86576.0,86572.0,0.11476708]
[1763672380395,0.01825723,86576.0,86575.0,0.01621]
[1763672380625,0.00012502,86576.0,86575.0,0.01621]
[1763672380848,0.00012502,86576.0,86575.0,0.04042]
[1763672383031,0.00012502,86576.0,86575.0,0.01342]
[1763672383274,0.00012502,86576.0,86575.0,0.02963]
[1763672383429,0.00012502,86576.0,86575.0,0.04659356]
[1763672383850,0.00012502,86576.0,86575.0,0.02963]
[1763672384012,0.00012502,86576.0,86575.0,0.07090424]
[1763672384211,0.00012502,86576.0,86575.0,0.02963]
[1763672384656,0.00012502,86576.0,86575.0,0.07090424]
[1763672385030,0.00012502,86576.0,86575.0,0.08173249]
[1763672385237,0.00012502,86576.0,86575.0,0.44598162]
[1763672385429,0.00012502,86576.0,86575.0,0.40473249]
[1763672385837,0.00012502,86576.0,86575.0,0.44598141]
[1763672386038,0.00012502,86576.0,86575.0,0.01721]
[1763672386310,0.00012502,86576.0,86575.0,0.04142]
[1763672386519,0.00012502,86576.0,86575.0,0.001]
[1763672386686,0.00012502,86576.0,86575.0,0.04142]
[1763672387091,0.00012502,86576.0,86575.0,0.001]
[1763672387602,0.00012502,86576.0,86575.0,0.01621]
[1763672387805,0.00012502,86576.0,86575.0,0.01721]
[1763672388424,0.00012502,86576.0,86575.0,0.001]
[1763672388578,0.00012502,86576.0,86575.0,0.04142]
[1763672388782,0.00012502,86576.0,86575.0,0.01721]
[1763672389047,0.00012502,86576.0,86575.0,0.01621]
[1763672389468,0.00012502,86576.0,86575.0,0.04142]
[1763672389626,0.00012502,86576.0,86575.0,0.09352249]
[1763672389793,0.00012502,86576.0,86575.0,0.48510512]
[1763672390001,0.00012502,86576.0,86575.0,0.47122089]
[1763672390245,0.00012502,86576.0,86575.0,0.33647676]
[1763672390446,0.00012502,86576.0,86575.0,0.3776984]
[1763672390669,0.00012502,86576.0,86575.0,0.33747676]
[1763672390857,0.00012502,86576.0,86575.0,0.01447676]
[1763672391328,0.00012502,86576.0,86575.0,0.01347676]
[1763672392069,0.00012502,86576.0,86575.0,0.09329822]
[1763672392269,0.00012502,86576.0,86575.0,0.05210249]
[1763672392690,0.00012502,86576.0,86575.0,0.05310249]
[1763672392899,0.00012502,86576.0,86575.0,0.001]
[1763672393479,0.00012502,86576.0,86574.0,0.323]
[1763672393933,0.00012502,86576.0,86575.0,0.001]
[1763672394285,0.00012502,86576.0,86575.0,0.11084001]
[1763672394483,0.00162834,86581.0,86575.0,0.11084001]
[1763672394484,0.00162834,86581.0,86576.0,0.05210249]
[1763672394744,0.00162834,86581.0,86576.0,0.09329822]
[1763672394934,0.00162834,86581.0,86578.0,0.05210249]
[1763672395138,0.00162834,86581.0,86580.0,0.05210249]
[1763672395390,0.01975514,86581.0,86580.0,0.09329822]
[1763672395540,0.01191,86655.0,86580.0,0.39896249]
[1763672395541,0.01191,86622.0,86580.0,0.39896249]
[1763672395764,0.01191,86622.0,86612.0,0.11476708]
[1763672395983,0.323,86636.0,86612.0,0.11476708]
[1763672396136,0.0228,86638.0,86617.0,0.47044468]
[1763672397019,0.0228,86638.0,86617.0,0.47092147]
[1763672397450,0.01191,86632.0,86617.0,0.39092147]
[1763672397617,0.01751146,86651.0,86626.0,0.11476708]
[1763672397618,0.01191,86639.0,86626.0,0.11476708]
[1763672397859,0.01191,86639.0,86628.0,0.47044468]
[1763672398403,0.01191,86639.0,86618.0,0.05056886]
[1763672398404,0.01191,86639.0,86629.0,0.47044468]
[1763672398596,0.01191,86639.0,86629.0,0.58521176]
[1763672398927,0.01191,86639.0,86617.0,0.00047679]
[1763672398928,0.01579,86630.0,86617.0,0.00047679]
[1763672399134,0.0277,86618.0,86617.0,0.00047679]
[1763672399350,0.0277,86618.0,86590.0,0.47044468]
[1763672399351,0.0505,86618.0,86590.0,0.47044468]
[1763672399577,0.05091799,86618.0,86600.0,0.47044468]
[1763672399794,0.0228,86617.0,86601.0,0.01385665]
[1763672400017,0.0181264,86614.0,86601.0,0.01385665]
[1763672400251,0.0181264,86614.0,86604.0,0.11476708]
[1763672400493,0.0181264,86614.0,86601.0,0.01385665]
[1763672400494,0.01579,86605.0,86590.0,0.47044468]
[1763672400721,0.0181264,86614.0,86595.0,0.58521176]
[1763672400964,0.323,86612.0,86574.0,0.04115361]
[1763672401183,0.323,86612.0,86586.0,0.11476708]
[1763672401412,0.0228,86611.0,86586.0,0.11476708]
[1763672401638,0.01191,86587.0,86586.0,0.11476708]
[1763672401856,0.01191,86587.0,86573.0,0.11476708]
[1763672401857,0.0505,86587.0,86573.0,0.11476708]
[1763672402076,0.03471,86587.0,86573.0,0.11476708]
[1763672402282,0.01191,86587.0,86577.0,0.47044468]
[1763672402497,0.01192,86599.0,86586.0,0.11476708]
[1763672402706,0.03566,86599.0,86580.0,0.47044468]
[1763672402935,0.03566,86599.0,86573.0,0.11476708]
[1763672402936,0.03607773,86599.0,86573.0,0.11476708]
[1763672403169,0.02374,86598.0,86580.0,0.47044468]
[1763672404421,0.02374,86598.0,86580.0,0.39544468]
[1763672404812,0.02374,86598.0,86561.0,0.323]
[1763672404813,0.01812879,86594.0,86569.0,0.04115361]
[1763672405037,0.01812879,86594.0,86561.0,0.323]
[1763672405038,0.01812879,86594.0,86571.0,0.04115361]
[1763672405254,0.02374,86593.0,86572.0,0.04115361]
[1763672405471,0.01192,86573.0,86572.0,0.04115361]
[1763672405680,0.01192,86573.0,86564.0,0.11476708]
[1763672405681,0.01192,86573.0,86564.0,0.15592069]
[1763672405969,0.01192,86585.0,86565.0,0.01386241]
[1763672406180,0.01812879,86594.0,86577.0,0.11476708]
[1763672406391,0.001,86593.0,86580.0,0.47044468]
[1763672406616,0.00041773,86593.0,86581.0,0.01385985]
[1763672406843,0.00041773,86593.0,86590.0,0.11476708]
[1763672407061,0.00041773,86593.0,86590.0,0.15592069]
[1763672407279,0.0185453,86593.0,86592.0,0.04115361]
[1763672407701,0.01892596,86593.0,86592.0,0.04115361]
[1763672408143,0.01892596,86593.0,86590.0,0.11476708]
[1763672408356,0.0185453,86593.0,86590.0,0.11476708]
[1763672410296,0.0185453,86593.0,86591.0,0.07609373]
[1763672410509,0.0185453,86593.0,86592.0,0.06214152]
[1763672411573,0.0185453,86593.0,86591.0,0.02714152]
[1763672411794,0.0185453,86593.0,86591.0,0.001]
[1763672412440,0.0185453,86593.0,86590.0,0.11476708]
[1763672412650,0.0185453,86593.0,86592.0,0.001]
[1763672413776,0.0185453,86593.0,86591.0,0.0414373]
[1763672413985,0.00034894,86592.0,86591.0,0.0414373]
[1763672414196,0.00034894,86592.0,86590.0,0.11576708]
[1763672414423,0.0185453,86593.0,86591.0,0.02947869]
[1763672414633,0.0185453,86593.0,86591.0,0.35247869]
[1763672414849,0.0185453,86593.0,86591.0,0.33862044]
[1763672415057,0.0185453,86593.0,86592.0,0.323]
[1763672416190,0.0185453,86593.0,86591.0,0.001]
[1763672417034,0.0185453,86593.0,86590.0,0.11476708]
[1763672417253,0.00041773,86593.0,86592.0,0.001]
[1763672417666,0.00041773,86593.0,86590.0,0.11476708]
[1763672418096,0.00041773,86593.0,86591.0,0.001]
[1763672418503,0.00041773,86593.0,86590.0,0.11476708]
[1763672418713,0.00041773,86593.0,86591.0,0.02533496]
[1763672418922,0.01854447,86593.0,86590.0,0.03376708]
[1763672419126,0.01854447,86593.0,86591.0,0.01385825]
[1763672419557,0.01854447,86593.0,86590.0,0.03376708]
[1763672419558,0.00031722,86591.0,86590.0,0.03376708]
[1763672420153,0.00031722,86591.0,86590.0,0.03276708]
[1763672420368,0.01844347,86591.0,86590.0,0.03276708]
[1763672421382,0.01844347,86591.0,86590.0,0.03376708]
[1763672424222,0.01844347,86591.0,86590.0,0.04762549]
[1763672424426,0.01844347,86591.0,86590.0,0.03376708]
[1763672424635,0.01844347,86591.0,86590.0,0.07772875]
[1763672424849,0.01844347,86591.0,86590.0,0.03376708]
[1763672425892,0.01844347,86591.0,86590.0,0.11476708]
[1763672427379,0.01385869,86633.0,86590.0,0.11476708]
[1763672427380,0.01192,86616.0,86606.0,0.11476708]
[1763672427591,0.01192,86616.0,86606.0,0.11491195]
[1763672427811,0.01812607,86614.0,86607.0,0.01205]
[1763672428172,0.01192,86616.0,86606.0,0.11491195]
[1763672428858,0.00809,86621.0,86607.0,0.0121]
[1763672429031,0.01812614,86614.0,86607.0,0.0121]
[1763672429655,0.01812614,86614.0,86613.0,0.01623]
[1763672429854,0.01812614,86614.0,86613.0,0.0388]
[1763672430017,0.01812614,86614.0,86609.0,0.04149051]
[1763672430384,0.01912614,86614.0,86607.0,0.05359051]
[1763672430561,0.01812614,86614.0,86607.0,0.07713051]
[1763672430767,0.01812496,86613.0,86607.0,0.07713051]
[1763672430985,0.05210249,86645.0,86612.0,0.0157]
[1763672431206,0.11476708,86631.0,86612.0,0.0157]
[1763672431403,0.11476708,86642.0,86612.0,0.0157]
[1763672431580,0.01812465,86662.0,86613.0,0.0550097]
[1763672431581,0.239255,86648.0,86613.0,0.0550097]
[1763672431796,0.11476708,86636.0,86613.0,0.0550097]
[1763672431992,0.11476708,86636.0,86612.0,0.02354]
[1763672432828,0.11476708,86649.0,86612.0,0.02354]
[1763672433042,0.11476708,86649.0,86607.0,0.0121]
[1763672433043,0.01107,86643.0,86620.0,0.78670213]
[1763672433220,0.02163032,86648.0,86620.0,0.78670213]
[1763672433221,0.001,86636.0,86620.0,0.78670213]
[1763672433420,0.001,86636.0,86632.0,0.11476708]
[1763672433621,0.01107,86656.0,86635.0,0.01664]
[1763672433622,0.002,86642.0,86635.0,0.01664]
[1763672433822,0.01107,86656.0,86635.0,0.01664]
[1763672434027,0.001,86649.0,86635.0,0.01314071]
[1763672434316,0.0014267,86636.0,86622.0,0.04149051]
[1763672434525,0.001,86649.0,86627.0,0.05210249]
[1763672434750,0.001,86649.0,86646.0,0.11476708]
[1763672435159,0.001,86649.0,86648.0,0.01664]
[1763672435365,0.01812187,86651.0,86648.0,0.01664]
[1763672435859,0.01812187,86651.0,86646.0,0.11476708]
[1763672436337,0.001,86649.0,86646.0,0.11476708]
[1763672436516,0.01812187,86651.0,86646.0,0.11491195]
[1763672436737,0.01812187,86651.0,86646.0,0.13780195]
[1763672436963,0.01812187,86651.0,86650.0,0.01664]
[1763672437175,0.0004,86680.0,86650.0,0.01664]
[1763672437356,0.0004,86680.0,86669.0,0.01192]
[1763672437587,0.0004,86680.0,86669.0,0.02856]
[1763672437795,0.0004,86680.0,86669.0,0.04272946]
[1763672438000,0.0181146,86671.0,86669.0,0.06561946]
[1763672438201,0.0004,86680.0,86669.0,0.06561946]
[1763672438623,0.0004,86680.0,86669.0,0.05128675]
[1763672439090,0.01812374,86692.0,86679.0,0.02856]
[1763672439322,0.01811197,86690.0,86682.0,0.78670213]
[1763672439776,0.01811197,86690.0,86683.0,0.02289]